Workbook

Sheet Menu
B2: 14-01
B4: Boekingsprogramma | E4: Bedrijfsnaam: | F4: Handelsbedrijf
E6: Periode: | F6: 2014-07-01
G9: maakt de bladen leeg, klaar voor een nieuwe periode (let op sla eerst het bestand op)
G10: ga naar inkoopfacturen
G11: ga naar verkoopfacturen
G12: ga naar b.t.w. overzicht (indien u zelf de aangifte b.t.w. doet, neem deze bedragen over)
G13: sla regelmatig het bestand op
G14: print de bladen en doe deze in de map voor de geboekte facturen/bonnen
G15: hebt u de periode geboekt, verzend deze naar: stelma@home.nl
G17: toevoegen van debiteuren, artikelen etc.
I19: © admiservice.nl

Sheet Inkoop - Kosten
C2: Boekinsgverslag | L2: 4290 Schoonmaakkosten
C3: Periode: | D3: =+Menu!F6 -> 2014-07-01 | E3: Dagboek: Inkoop | I3: 1600 | J3: 1911
C5: nr | D5: datum | E5: omschrijving | F5: fact.nr. leverancier | G5: bedrag incl. | H5: b.t.w | I5: bedrag excl. | J5: kostensoort
A7: invoegen tabel ? | C7: nummer | D7: datum | E7: omscrhijving | F7: fact.nr. leverancier | G7: bedr. incl. | H7: btw | I7: bedr. Excl | J7: kostensoort
B8: 15000 | C8: =+B8+1 -> 15001 | D8: 2014-12-10 | E8: leverancier b.v. | F8: 258369147x | G8: 227 | H8: 27 | I8: =+Tabel1[[#This Row],[bedr. incl.]]-Tabel1[[#This Row],[btw]] -> 200 | J8: 6010 | M8: 1911
C9: =+IF(D8=0,"",C8+1) -> 15002 | D9: 2014-12-13 | E9: de boer | F9: 20130056x | G9: 200 | H9: 25 | I9: =+Tabel1[[#This Row],[bedr. incl.]]-Tabel1[[#This Row],[btw]] -> 175 | J9: 4998 | M9: 1911
C10: 15003 | D10: 2014-12-12 | E10: koster | F10: 2140518 | G10: 1254 | H10: 342 | I10: =+Tabel1[[#This Row],[bedr. incl.]]-Tabel1[[#This Row],[btw]] -> 912 | J10: 4290 | M10: 1911
A11: =+IF(B8=0,"laatste boekstuknr invullen!"," ") ->  | C11: 15004 | I11: =+Tabel1[[#This Row],[bedr. incl.]]-Tabel1[[#This Row],[btw]] -> 0 | M11: 1911
I12: =+Tabel1[[#This Row],[bedr. incl.]]-Tabel1[[#This Row],[btw]] -> 0 | M12: 1911
I13: =+Tabel1[[#This Row],[bedr. incl.]]-Tabel1[[#This Row],[btw]] -> 0 | M13: 1911
I14: =+Tabel1[[#This Row],[bedr. incl.]]-Tabel1[[#This Row],[btw]] -> 0 | M14: 1911
I15: =+Tabel1[[#This Row],[bedr. incl.]]-Tabel1[[#This Row],[btw]] -> 0 | M15: 1911
I16: =+Tabel1[[#This Row],[bedr. incl.]]-Tabel1[[#This Row],[btw]] -> 0 | M16: 1911
I17: =+Tabel1[[#This Row],[bedr. incl.]]-Tabel1[[#This Row],[btw]] -> 0 | M17: 1911
I18: =+Tabel1[[#This Row],[bedr. incl.]]-Tabel1[[#This Row],[btw]] -> 0 | M18: 1911
I19: =+Tabel1[[#This Row],[bedr. incl.]]-Tabel1[[#This Row],[btw]] -> 0 | M19: 1911
I20: =+Tabel1[[#This Row],[bedr. incl.]]-Tabel1[[#This Row],[btw]] -> 0 | M20: 1911
I21: =+Tabel1[[#This Row],[bedr. incl.]]-Tabel1[[#This Row],[btw]] -> 0 | M21: 1911
I22: =+Tabel1[[#This Row],[bedr. incl.]]-Tabel1[[#This Row],[btw]] -> 0 | M22: 1911
I23: =+Tabel1[[#This Row],[bedr. incl.]]-Tabel1[[#This Row],[btw]] -> 0 | M23: 1911
I24: =+Tabel1[[#This Row],[bedr. incl.]]-Tabel1[[#This Row],[btw]] -> 0 | M24: 1911
I25: =+Tabel1[[#This Row],[bedr. incl.]]-Tabel1[[#This Row],[btw]] -> 0 | M25: 1911
I26: =+Tabel1[[#This Row],[bedr. incl.]]-Tabel1[[#This Row],[btw]] -> 0 | M26: 1911
I27: =+Tabel1[[#This Row],[bedr. incl.]]-Tabel1[[#This Row],[btw]] -> 0 | M27: 1911
I28: =+Tabel1[[#This Row],[bedr. incl.]]-Tabel1[[#This Row],[btw]] -> 0 | M28: 1911
I29: =+Tabel1[[#This Row],[bedr. incl.]]-Tabel1[[#This Row],[btw]] -> 0 | M29: 1911
I30: =+Tabel1[[#This Row],[bedr. incl.]]-Tabel1[[#This Row],[btw]] -> 0 | M30: 1911
I31: =+Tabel1[[#This Row],[bedr. incl.]]-Tabel1[[#This Row],[btw]] -> 0 | M31: 1911
I32: =+Tabel1[[#This Row],[bedr. incl.]]-Tabel1[[#This Row],[btw]] -> 0 | M32: 1911
I33: =+Tabel1[[#This Row],[bedr. incl.]]-Tabel1[[#This Row],[btw]] -> 0 | M33: 1911
I34: =+Tabel1[[#This Row],[bedr. incl.]]-Tabel1[[#This Row],[btw]] -> 0 | M34: 1911
I35: =+Tabel1[[#This Row],[bedr. incl.]]-Tabel1[[#This Row],[btw]] -> 0 | M35: 1911
I36: =+Tabel1[[#This Row],[bedr. incl.]]-Tabel1[[#This Row],[btw]] -> 0 | M36: 1911
I37: =+Tabel1[[#This Row],[bedr. incl.]]-Tabel1[[#This Row],[btw]] -> 0 | M37: 1911
I38: =+Tabel1[[#This Row],[bedr. incl.]]-Tabel1[[#This Row],[btw]] -> 0 | M38: 1911
I39: =+Tabel1[[#This Row],[bedr. incl.]]-Tabel1[[#This Row],[btw]] -> 0 | M39: 1911
I40: =+Tabel1[[#This Row],[bedr. incl.]]-Tabel1[[#This Row],[btw]] -> 0 | M40: 1911
I41: =+Tabel1[[#This Row],[bedr. incl.]]-Tabel1[[#This Row],[btw]] -> 0 | M41: 1911
I42: =+Tabel1[[#This Row],[bedr. incl.]]-Tabel1[[#This Row],[btw]] -> 0 | M42: 1911
I43: =+Tabel1[[#This Row],[bedr. incl.]]-Tabel1[[#This Row],[btw]] -> 0 | M43: 1911
I44: =+Tabel1[[#This Row],[bedr. incl.]]-Tabel1[[#This Row],[btw]] -> 0 | M44: 1911
I45: =+Tabel1[[#This Row],[bedr. incl.]]-Tabel1[[#This Row],[btw]] -> 0 | M45: 1911
I46: =+Tabel1[[#This Row],[bedr. incl.]]-Tabel1[[#This Row],[btw]] -> 0 | M46: 1911
I47: =+Tabel1[[#This Row],[bedr. incl.]]-Tabel1[[#This Row],[btw]] -> 0 | M47: 1911
I48: =+Tabel1[[#This Row],[bedr. incl.]]-Tabel1[[#This Row],[btw]] -> 0 | M48: 1911
I49: =+Tabel1[[#This Row],[bedr. incl.]]-Tabel1[[#This Row],[btw]] -> 0 | M49: 1911
I50: =+Tabel1[[#This Row],[bedr. incl.]]-Tabel1[[#This Row],[btw]] -> 0 | M50: 1911
I51: =+Tabel1[[#This Row],[bedr. incl.]]-Tabel1[[#This Row],[btw]] -> 0 | M51: 1911
I52: =+Tabel1[[#This Row],[bedr. incl.]]-Tabel1[[#This Row],[btw]] -> 0 | M52: 1911
I53: =+Tabel1[[#This Row],[bedr. incl.]]-Tabel1[[#This Row],[btw]] -> 0 | M53: 1911
I54: =+Tabel1[[#This Row],[bedr. incl.]]-Tabel1[[#This Row],[btw]] -> 0 | M54: 1911
I55: =+Tabel1[[#This Row],[bedr. incl.]]-Tabel1[[#This Row],[btw]] -> 0 | M55: 1911
I56: =+Tabel1[[#This Row],[bedr. incl.]]-Tabel1[[#This Row],[btw]] -> 0 | M56: 1911
I57: =+Tabel1[[#This Row],[bedr. incl.]]-Tabel1[[#This Row],[btw]] -> 0 | M57: 1911
I58: =+Tabel1[[#This Row],[bedr. incl.]]-Tabel1[[#This Row],[btw]] -> 0 | M58: 1911
I59: =+Tabel1[[#This Row],[bedr. incl.]]-Tabel1[[#This Row],[btw]] -> 0 | M59: 1911
I60: =+Tabel1[[#This Row],[bedr. incl.]]-Tabel1[[#This Row],[btw]] -> 0 | M60: 1911
I61: =+Tabel1[[#This Row],[bedr. incl.]]-Tabel1[[#This Row],[btw]] -> 0 | M61: 1911
I62: =+Tabel1[[#This Row],[bedr. incl.]]-Tabel1[[#This Row],[btw]] -> 0 | M62: 1911
I63: =+Tabel1[[#This Row],[bedr. incl.]]-Tabel1[[#This Row],[btw]] -> 0 | M63: 1911
I64: =+Tabel1[[#This Row],[bedr. incl.]]-Tabel1[[#This Row],[btw]] -> 0 | M64: 1911
I65: =+Tabel1[[#This Row],[bedr. incl.]]-Tabel1[[#This Row],[btw]] -> 0 | M65: 1911
I66: =+Tabel1[[#This Row],[bedr. incl.]]-Tabel1[[#This Row],[btw]] -> 0 | M66: 1911
I67: =+Tabel1[[#This Row],[bedr. incl.]]-Tabel1[[#This Row],[btw]] -> 0 | M67: 1911
I68: =+Tabel1[[#This Row],[bedr. incl.]]-Tabel1[[#This Row],[btw]] -> 0 | M68: 1911
I69: =+Tabel1[[#This Row],[bedr. incl.]]-Tabel1[[#This Row],[btw]] -> 0 | M69: 1911
I70: =+Tabel1[[#This Row],[bedr. incl.]]-Tabel1[[#This Row],[btw]] -> 0 | M70: 1911
I71: =+Tabel1[[#This Row],[bedr. incl.]]-Tabel1[[#This Row],[btw]] -> 0 | M71: 1911
I72: =+Tabel1[[#This Row],[bedr. incl.]]-Tabel1[[#This Row],[btw]] -> 0 | M72: 1911
I73: =+Tabel1[[#This Row],[bedr. incl.]]-Tabel1[[#This Row],[btw]] -> 0 | M73: 1911
C74: =+IF(D73=0,"",C73+1) ->  | I74: =+Tabel1[[#This Row],[bedr. incl.]]-Tabel1[[#This Row],[btw]] -> 0 | M74: 1911
I75: =+Tabel1[[#This Row],[bedr. incl.]]-Tabel1[[#This Row],[btw]] -> 0 | M75: 1911
I76: =+Tabel1[[#This Row],[bedr. incl.]]-Tabel1[[#This Row],[btw]] -> 0 | M76: 1911
C77: =+IF(D76=0,"",C76+1) ->  | I77: =+Tabel1[[#This Row],[bedr. incl.]]-Tabel1[[#This Row],[btw]] -> 0 | M77: 1911
I78: =+Tabel1[[#This Row],[bedr. incl.]]-Tabel1[[#This Row],[btw]] -> 0 | M78: 1911
I79: =+Tabel1[[#This Row],[bedr. incl.]]-Tabel1[[#This Row],[btw]] -> 0 | M79: 1911
I80: =+Tabel1[[#This Row],[bedr. incl.]]-Tabel1[[#This Row],[btw]] -> 0 | M80: 1911
I81: =+Tabel1[[#This Row],[bedr. incl.]]-Tabel1[[#This Row],[btw]] -> 0 | M81: 1911
I82: =+Tabel1[[#This Row],[bedr. incl.]]-Tabel1[[#This Row],[btw]] -> 0 | M82: 1911
I83: =+Tabel1[[#This Row],[bedr. incl.]]-Tabel1[[#This Row],[btw]] -> 0 | M83: 1911
I84: =+Tabel1[[#This Row],[bedr. incl.]]-Tabel1[[#This Row],[btw]] -> 0 | M84: 1911
I85: =+Tabel1[[#This Row],[bedr. incl.]]-Tabel1[[#This Row],[btw]] -> 0 | M85: 1911
I86: =+Tabel1[[#This Row],[bedr. incl.]]-Tabel1[[#This Row],[btw]] -> 0 | K86: =SUM(K7:K85) -> 0 | L86: 0
E87: telling | G87: =SUM(G8:G86) -> 1681 | H87: =SUM(H8:H86) -> 394 | I87: =SUM(I8:I86) -> 1287
C88: www.admiservice.nl

Sheet Verkoop
C2: Boekinsgverslag | K2: =+Menu!F4 -> Handelsbedrijf
C3: Periode: | D3: =+Menu!F6 -> 2014-07-01 | E3: Dagboek: Verkoop | L3: 1300
C5: volgnummer | D5: datum | E5: debiteur | F5: fact.nr. | G5: bedrag incl. | H5: b.t.w | J5: bedrag excl. | K5: dagboek | L5: omzetgroep | N5: Omzet rekeningen
A7: =+IF(C8=0,"Boekstuknummer wijzigen > Begin van een jaar = 1. Vervolgens laatste boekstuknummer +1 van de vorige periode invoeren.","") ->  | C7: volgnr | D7: datum | E7: omscrhijving | F7: fact.nr. | G7: bedr. incl. | H7: 21,0% | I7: 6,0% | J7: bedr. Excl | K7: dagboek | L7: omzetgroep | Q7: =+IF(K8="KAS",G8,"") ->  | R7: =+IF(K8="bANK",G8,"") -> 
B8: 1500 | C8: =+B8+1 -> 1501 | D8: 2014-12-10 | E8: klant b.v. | F8: 20130025 | G8: 363 | H8: 63 | J8: =+Tabel17[[#This Row],[bedr. incl.]]-Tabel17[[#This Row],[21,0%]]-Tabel17[[#This Row],[6,0%]] -> 300 | K8: 1300 | L8: 8010 | Q8: =+IF(K9="KAS",G9,"") -> 
C9: =+IF(D8=0,"",C8+1) -> 1502 | D9: 2014-12-15 | E9: de boer | F9: 20130056 | G9: 121 | H9: 21 | J9: =+Tabel17[[#This Row],[bedr. incl.]]-Tabel17[[#This Row],[21,0%]]-Tabel17[[#This Row],[6,0%]] -> 100 | K9: 1300 | L9: 8020
C10: 1503 | J10: =+Tabel17[[#This Row],[bedr. incl.]]-Tabel17[[#This Row],[21,0%]]-Tabel17[[#This Row],[6,0%]] -> 0 | K10: 1300
A11: =+IF(B8=0,"laatste boekstuknr invullen!"," ") ->  | J11: =+Tabel17[[#This Row],[bedr. incl.]]-Tabel17[[#This Row],[21,0%]]-Tabel17[[#This Row],[6,0%]] -> 0 | K11: 1300
J12: =+Tabel17[[#This Row],[bedr. incl.]]-Tabel17[[#This Row],[21,0%]]-Tabel17[[#This Row],[6,0%]] -> 0 | K12: 1300
J13: =+Tabel17[[#This Row],[bedr. incl.]]-Tabel17[[#This Row],[21,0%]]-Tabel17[[#This Row],[6,0%]] -> 0 | K13: 1300
J14: =+Tabel17[[#This Row],[bedr. incl.]]-Tabel17[[#This Row],[21,0%]]-Tabel17[[#This Row],[6,0%]] -> 0 | K14: 1300
J15: =+Tabel17[[#This Row],[bedr. incl.]]-Tabel17[[#This Row],[21,0%]]-Tabel17[[#This Row],[6,0%]] -> 0 | K15: 1300
J16: =+Tabel17[[#This Row],[bedr. incl.]]-Tabel17[[#This Row],[21,0%]]-Tabel17[[#This Row],[6,0%]] -> 0 | K16: 1300
J17: =+Tabel17[[#This Row],[bedr. incl.]]-Tabel17[[#This Row],[21,0%]]-Tabel17[[#This Row],[6,0%]] -> 0 | K17: 1300
J18: =+Tabel17[[#This Row],[bedr. incl.]]-Tabel17[[#This Row],[21,0%]]-Tabel17[[#This Row],[6,0%]] -> 0 | K18: 1300
J19: =+Tabel17[[#This Row],[bedr. incl.]]-Tabel17[[#This Row],[21,0%]]-Tabel17[[#This Row],[6,0%]] -> 0 | K19: 1300
J20: =+Tabel17[[#This Row],[bedr. incl.]]-Tabel17[[#This Row],[21,0%]]-Tabel17[[#This Row],[6,0%]] -> 0 | K20: 1300
J21: =+Tabel17[[#This Row],[bedr. incl.]]-Tabel17[[#This Row],[21,0%]]-Tabel17[[#This Row],[6,0%]] -> 0 | K21: 1300
J22: =+Tabel17[[#This Row],[bedr. incl.]]-Tabel17[[#This Row],[21,0%]]-Tabel17[[#This Row],[6,0%]] -> 0 | K22: 1300
J23: =+Tabel17[[#This Row],[bedr. incl.]]-Tabel17[[#This Row],[21,0%]]-Tabel17[[#This Row],[6,0%]] -> 0 | K23: 1300
J24: =+Tabel17[[#This Row],[bedr. incl.]]-Tabel17[[#This Row],[21,0%]]-Tabel17[[#This Row],[6,0%]] -> 0 | K24: 1300
J25: =+Tabel17[[#This Row],[bedr. incl.]]-Tabel17[[#This Row],[21,0%]]-Tabel17[[#This Row],[6,0%]] -> 0 | K25: 1300
J26: =+Tabel17[[#This Row],[bedr. incl.]]-Tabel17[[#This Row],[21,0%]]-Tabel17[[#This Row],[6,0%]] -> 0 | K26: 1300
J27: =+Tabel17[[#This Row],[bedr. incl.]]-Tabel17[[#This Row],[21,0%]]-Tabel17[[#This Row],[6,0%]] -> 0 | K27: 1300
J28: =+Tabel17[[#This Row],[bedr. incl.]]-Tabel17[[#This Row],[21,0%]]-Tabel17[[#This Row],[6,0%]] -> 0 | K28: 1300
J29: =+Tabel17[[#This Row],[bedr. incl.]]-Tabel17[[#This Row],[21,0%]]-Tabel17[[#This Row],[6,0%]] -> 0 | K29: 1300
J30: =+Tabel17[[#This Row],[bedr. incl.]]-Tabel17[[#This Row],[21,0%]]-Tabel17[[#This Row],[6,0%]] -> 0 | K30: 1300
J31: =+Tabel17[[#This Row],[bedr. incl.]]-Tabel17[[#This Row],[21,0%]]-Tabel17[[#This Row],[6,0%]] -> 0 | K31: 1300
J32: =+Tabel17[[#This Row],[bedr. incl.]]-Tabel17[[#This Row],[21,0%]]-Tabel17[[#This Row],[6,0%]] -> 0 | K32: 1300
J33: =+Tabel17[[#This Row],[bedr. incl.]]-Tabel17[[#This Row],[21,0%]]-Tabel17[[#This Row],[6,0%]] -> 0 | K33: 1300
J34: =+Tabel17[[#This Row],[bedr. incl.]]-Tabel17[[#This Row],[21,0%]]-Tabel17[[#This Row],[6,0%]] -> 0 | K34: 1300
J35: =+Tabel17[[#This Row],[bedr. incl.]]-Tabel17[[#This Row],[21,0%]]-Tabel17[[#This Row],[6,0%]] -> 0 | K35: 1300
J36: =+Tabel17[[#This Row],[bedr. incl.]]-Tabel17[[#This Row],[21,0%]]-Tabel17[[#This Row],[6,0%]] -> 0 | K36: 1300
J37: =+Tabel17[[#This Row],[bedr. incl.]]-Tabel17[[#This Row],[21,0%]]-Tabel17[[#This Row],[6,0%]] -> 0 | K37: 1300
J38: =+Tabel17[[#This Row],[bedr. incl.]]-Tabel17[[#This Row],[21,0%]]-Tabel17[[#This Row],[6,0%]] -> 0 | K38: 1300
J39: =+Tabel17[[#This Row],[bedr. incl.]]-Tabel17[[#This Row],[21,0%]]-Tabel17[[#This Row],[6,0%]] -> 0 | K39: 1300
J40: =+Tabel17[[#This Row],[bedr. incl.]]-Tabel17[[#This Row],[21,0%]]-Tabel17[[#This Row],[6,0%]] -> 0 | K40: 1300
J41: =+Tabel17[[#This Row],[bedr. incl.]]-Tabel17[[#This Row],[21,0%]]-Tabel17[[#This Row],[6,0%]] -> 0 | K41: 1300
J42: =+Tabel17[[#This Row],[bedr. incl.]]-Tabel17[[#This Row],[21,0%]]-Tabel17[[#This Row],[6,0%]] -> 0 | K42: 1300
J43: =+Tabel17[[#This Row],[bedr. incl.]]-Tabel17[[#This Row],[21,0%]]-Tabel17[[#This Row],[6,0%]] -> 0 | K43: 1300
J44: =+Tabel17[[#This Row],[bedr. incl.]]-Tabel17[[#This Row],[21,0%]]-Tabel17[[#This Row],[6,0%]] -> 0 | K44: 1300
J45: =+Tabel17[[#This Row],[bedr. incl.]]-Tabel17[[#This Row],[21,0%]]-Tabel17[[#This Row],[6,0%]] -> 0 | K45: 1300
J46: =+Tabel17[[#This Row],[bedr. incl.]]-Tabel17[[#This Row],[21,0%]]-Tabel17[[#This Row],[6,0%]] -> 0 | K46: 1300
J47: =+Tabel17[[#This Row],[bedr. incl.]]-Tabel17[[#This Row],[21,0%]]-Tabel17[[#This Row],[6,0%]] -> 0 | K47: 1300
J48: =+Tabel17[[#This Row],[bedr. incl.]]-Tabel17[[#This Row],[21,0%]]-Tabel17[[#This Row],[6,0%]] -> 0 | K48: 1300
J49: =+Tabel17[[#This Row],[bedr. incl.]]-Tabel17[[#This Row],[21,0%]]-Tabel17[[#This Row],[6,0%]] -> 0 | K49: 1300
J50: =+Tabel17[[#This Row],[bedr. incl.]]-Tabel17[[#This Row],[21,0%]]-Tabel17[[#This Row],[6,0%]] -> 0 | K50: 1300
J51: =+Tabel17[[#This Row],[bedr. incl.]]-Tabel17[[#This Row],[21,0%]]-Tabel17[[#This Row],[6,0%]] -> 0 | K51: 1300
J52: =+Tabel17[[#This Row],[bedr. incl.]]-Tabel17[[#This Row],[21,0%]]-Tabel17[[#This Row],[6,0%]] -> 0 | K52: 1300
J53: =+Tabel17[[#This Row],[bedr. incl.]]-Tabel17[[#This Row],[21,0%]]-Tabel17[[#This Row],[6,0%]] -> 0 | K53: 1300
J54: =+Tabel17[[#This Row],[bedr. incl.]]-Tabel17[[#This Row],[21,0%]]-Tabel17[[#This Row],[6,0%]] -> 0 | K54: 1300
J55: =+Tabel17[[#This Row],[bedr. incl.]]-Tabel17[[#This Row],[21,0%]]-Tabel17[[#This Row],[6,0%]] -> 0 | K55: 1300
J56: =+Tabel17[[#This Row],[bedr. incl.]]-Tabel17[[#This Row],[21,0%]]-Tabel17[[#This Row],[6,0%]] -> 0 | K56: 1300
J57: =+Tabel17[[#This Row],[bedr. incl.]]-Tabel17[[#This Row],[21,0%]]-Tabel17[[#This Row],[6,0%]] -> 0 | K57: 1300
J58: =+Tabel17[[#This Row],[bedr. incl.]]-Tabel17[[#This Row],[21,0%]]-Tabel17[[#This Row],[6,0%]] -> 0 | K58: 1300
J59: =+Tabel17[[#This Row],[bedr. incl.]]-Tabel17[[#This Row],[21,0%]]-Tabel17[[#This Row],[6,0%]] -> 0 | K59: 1300
J60: =+Tabel17[[#This Row],[bedr. incl.]]-Tabel17[[#This Row],[21,0%]]-Tabel17[[#This Row],[6,0%]] -> 0 | K60: 1300
J61: =+Tabel17[[#This Row],[bedr. incl.]]-Tabel17[[#This Row],[21,0%]]-Tabel17[[#This Row],[6,0%]] -> 0 | K61: 1300
J62: =+Tabel17[[#This Row],[bedr. incl.]]-Tabel17[[#This Row],[21,0%]]-Tabel17[[#This Row],[6,0%]] -> 0 | K62: 1300
J63: =+Tabel17[[#This Row],[bedr. incl.]]-Tabel17[[#This Row],[21,0%]]-Tabel17[[#This Row],[6,0%]] -> 0 | K63: 1300
J64: =+Tabel17[[#This Row],[bedr. incl.]]-Tabel17[[#This Row],[21,0%]]-Tabel17[[#This Row],[6,0%]] -> 0 | K64: 1300
J65: =+Tabel17[[#This Row],[bedr. incl.]]-Tabel17[[#This Row],[21,0%]]-Tabel17[[#This Row],[6,0%]] -> 0 | K65: 1300
J66: =+Tabel17[[#This Row],[bedr. incl.]]-Tabel17[[#This Row],[21,0%]]-Tabel17[[#This Row],[6,0%]] -> 0 | K66: 1300
J67: =+Tabel17[[#This Row],[bedr. incl.]]-Tabel17[[#This Row],[21,0%]]-Tabel17[[#This Row],[6,0%]] -> 0 | K67: 1300
J68: =+Tabel17[[#This Row],[bedr. incl.]]-Tabel17[[#This Row],[21,0%]]-Tabel17[[#This Row],[6,0%]] -> 0 | K68: 1300
J69: =+Tabel17[[#This Row],[bedr. incl.]]-Tabel17[[#This Row],[21,0%]]-Tabel17[[#This Row],[6,0%]] -> 0 | K69: 1300
J70: =+Tabel17[[#This Row],[bedr. incl.]]-Tabel17[[#This Row],[21,0%]]-Tabel17[[#This Row],[6,0%]] -> 0 | K70: 1300
J71: =+Tabel17[[#This Row],[bedr. incl.]]-Tabel17[[#This Row],[21,0%]]-Tabel17[[#This Row],[6,0%]] -> 0 | K71: 1300
J72: =+Tabel17[[#This Row],[bedr. incl.]]-Tabel17[[#This Row],[21,0%]]-Tabel17[[#This Row],[6,0%]] -> 0 | K72: 1300
C73: =+IF(D72=0,"",C72+1) ->  | J73: =+Tabel17[[#This Row],[bedr. incl.]]-Tabel17[[#This Row],[21,0%]]-Tabel17[[#This Row],[6,0%]] -> 0 | K73: 1300
J74: =+Tabel17[[#This Row],[bedr. incl.]]-Tabel17[[#This Row],[21,0%]]-Tabel17[[#This Row],[6,0%]] -> 0 | K74: 1300
J75: =+Tabel17[[#This Row],[bedr. incl.]]-Tabel17[[#This Row],[21,0%]]-Tabel17[[#This Row],[6,0%]] -> 0 | K75: 1300
J76: =+Tabel17[[#This Row],[bedr. incl.]]-Tabel17[[#This Row],[21,0%]]-Tabel17[[#This Row],[6,0%]] -> 0 | K76: 1300
J77: =+Tabel17[[#This Row],[bedr. incl.]]-Tabel17[[#This Row],[21,0%]]-Tabel17[[#This Row],[6,0%]] -> 0 | K77: 1300
J78: =+Tabel17[[#This Row],[bedr. incl.]]-Tabel17[[#This Row],[21,0%]]-Tabel17[[#This Row],[6,0%]] -> 0 | K78: 1300
J79: =+Tabel17[[#This Row],[bedr. incl.]]-Tabel17[[#This Row],[21,0%]]-Tabel17[[#This Row],[6,0%]] -> 0 | K79: 1300
J80: =+Tabel17[[#This Row],[bedr. incl.]]-Tabel17[[#This Row],[21,0%]]-Tabel17[[#This Row],[6,0%]] -> 0 | K80: 1300
J81: =+Tabel17[[#This Row],[bedr. incl.]]-Tabel17[[#This Row],[21,0%]]-Tabel17[[#This Row],[6,0%]] -> 0 | K81: 1300
J82: =+Tabel17[[#This Row],[bedr. incl.]]-Tabel17[[#This Row],[21,0%]]-Tabel17[[#This Row],[6,0%]] -> 0 | K82: 1300
J83: =+Tabel17[[#This Row],[bedr. incl.]]-Tabel17[[#This Row],[21,0%]]-Tabel17[[#This Row],[6,0%]] -> 0 | K83: 1300
J84: =+Tabel17[[#This Row],[bedr. incl.]]-Tabel17[[#This Row],[21,0%]]-Tabel17[[#This Row],[6,0%]] -> 0 | K84: 1300
J85: =+Tabel17[[#This Row],[bedr. incl.]]-Tabel17[[#This Row],[21,0%]]-Tabel17[[#This Row],[6,0%]] -> 0 | K85: 1300
J86: =+Tabel17[[#This Row],[bedr. incl.]]-Tabel17[[#This Row],[21,0%]]-Tabel17[[#This Row],[6,0%]] -> 0 | K86: 1300 | M86: =SUM(M7:M85) -> 0 | N86: 0
E87: telling | G87: =SUM(G8:G86) -> 484 | I87: =SUM(I8:I86) -> 0 | J87: =SUM(J8:J86) -> 400
C88: www.admiservice.nl

Sheet B .t.w.
B3: =+Menu!F4 -> Handelsbedrijf
B4: =+Menu!F6 -> 2014-07-01 | E4: =+IF(B4=0,"< voer periode in","") -> 
B7: B.t.w. aangifte
B9: =+'Inkoop - Kosten'!D3 -> 2014-07-01 | D9: aangifte voor eind | F9: =+B9+31 -> 2014-08-01
B10: 1a | C10: Af te dragen | D10: 0.06 | E10: =+#REF! ->  | F10: =+#REF! -> 
D11: 0.21 | E11: =+F11/D11 ->  | F11: =+#REF! -> 
F12: =+F10+F11 ->  | H12: =+F14-G14 -> 
B13: 5a | C13: Voorbelasting | F13: =+'Inkoop - Kosten'!H87 -> 394
B14: 5f | C14: =+IF(F14<=0,"Te ontvangen","Te betalen") ->  | F14: =+F12-F13 ->  | G14: =+#REF! -> 

Sheet FACTUUR
C1: Evert Hendrixwewg 30 | D1: B.t.w. nr. | E1: 061348387.B.01 | J1: =+Bron!I2 -> 18 | K1: =+Bron!K2 -> adres 2 | L1: =+Bron!L2 -> woonplaats 2
C2: 9422 TB Smilde | D2: Kv.K nr. | E2: 4052075 | J2: =+Bron!I3 -> 43 | K2: =+Bron!K3 -> adres 3 | L2: =+Bron!L3 -> woonplaats 3
C3: tel. 0592-414469 | D3: Bank: | E3: ABN/Amro 4575.67.465 | J3: =+Bron!I4 -> 21 | K3: =+Bron!K4 -> adres 4 | L3: =+Bron!L4 -> woonplaats 4
C4: mobiel/whats app: 06- | D4: E-mail: | E4: betsie.p@hormail.com | J4: =+Bron!I5 -> 42 | K4: =+Bron!K5 -> adres 5 | L4: =+Bron!L5 -> woonplaats 5
J5: =+Bron!I6 -> 29 | K5: =+Bron!K6 -> adres 6 | L5: =+Bron!L6 -> woonplaats 6
B6: 1 | J6: =+Bron!I7 -> 41 | K6: =+Bron!K7 -> adres 7 | L6: =+Bron!L7 -> woonplaats 7
B7: Interview & Adviesbureau AT Pruim-Broers | J7: =+Bron!I8 -> 8 | K7: =+Bron!K8 -> adres 8 | L7: =+Bron!L8 -> woonplaats 8
J8: =+Bron!I9 -> 31 | K8: =+Bron!K9 -> adres 9 | L8: =+Bron!L9 -> woonplaats 9
J9: =+Bron!I10 -> 13 | K9: =+Bron!K10 -> adres 10 | L9: =+Bron!L10 -> woonplaats 10
A10: naam | B10: 000 Nieuwe debiteur | D10: Factuur | J10: =+Bron!I11 -> 15 | K10: =+Bron!K11 -> adres 11 | L10: =+Bron!L11 -> woonplaats 11
A11: adres | B11: =VLOOKUP(B10,J1:L41,2) ->  | J11: =+Bron!I12 -> 17 | K11: =+Bron!K12 -> adres 12 | L11: =+Bron!L12 -> woonplaats 12
A12: woonpl. | B12: =VLOOKUP(B10,J1:L41,3) ->  | D12: Datum: | F12: =+TODAY() -> 2014-12-01 | J12: =+Bron!I13 -> 27 | K12: =+Bron!K13 -> adres 13 | L12: =+Bron!L13 -> woonplaats 13
D13: Factuurnummer: | F13: 100 | J13: =+Bron!I14 -> 24 | K13: =+Bron!K14 -> adres 14 | L13: =+Bron!L14 -> woonplaats 14
J14: =+Bron!I15 -> 37 | K14: =+Bron!K15 -> adres 15 | L14: =+Bron!L15 -> woonplaats 15
B15: Project: | J15: =+Bron!I16 -> 33 | K15: =+Bron!K16 -> adres 16 | L15: =+Bron!L16 -> woonplaats 16
J16: =+Bron!I17 -> 23 | K16: =+Bron!K17 -> adres 17 | L16: =+Bron!L17 -> woonplaats 17
B17: Art. | C17: Omschrijving | D17: Aantal | E17: Stuksprijs | F17: Bedrag | J17: =+Bron!I18 -> 38 | K17: =+Bron!K18 -> adres 18 | L17: =+Bron!L18 -> woonplaats 18
B18: 230 portokosten | D18: 100 | E18: 1000 | F18: 10000 | J18: =+Bron!I19 -> 4 | K18: =+Bron!K19 -> adres 19 | L18: =+Bron!L19 -> woonplaats 19
J19: =+Bron!I20 -> 25 | K19: =+Bron!K20 -> adres 20 | L19: =+Bron!L20 -> woonplaats 20
J20: =+Bron!I21 -> 26 | K20: =+Bron!K21 -> adres 21 | L20: =+Bron!L21 -> woonplaats 21
J21: =+Bron!I22 -> 27 | K21: =+Bron!K22 -> adres 22 | L21: =+Bron!L22 -> woonplaats 22
J22: =+Bron!I23 -> 0 | K22: =+Bron!K23 -> bel roelof | L22: =+Bron!L23 -> 06-37025889
J23: =+Bron!I24 -> 6 | K23: =+Bron!K24 -> adres 23 | L23: =+Bron!L24 -> woonplaats 23
J24: =+Bron!I25 -> 39 | K24: =+Bron!K25 -> adres 24 | L24: =+Bron!L25 -> woonplaats 24
J25: =+Bron!I26 -> 11 | K25: =+Bron!K26 -> adres 25 | L25: =+Bron!L26 -> woonplaats 25
J26: =+Bron!I27 -> 5 | K26: =+Bron!K27 -> adres 26 | L26: =+Bron!L27 -> woonplaats 26
J27: =+Bron!I28 -> 1 | K27: =+Bron!K28 -> adres 27 | L27: =+Bron!L28 -> woonplaats 27
J28: =+Bron!I29 -> 34 | K28: =+Bron!K29 -> adres 28 | L28: =+Bron!L29 -> woonplaats 28
J29: =+Bron!I30 -> 36 | K29: =+Bron!K30 -> adres 29 | L29: =+Bron!L30 -> woonplaats 29
J30: =+Bron!I31 -> 2 | K30: =+Bron!K31 -> adres 30 | L30: =+Bron!L31 -> woonplaats 30
J31: =+Bron!I32 -> 20 | K31: =+Bron!K32 -> adres 31 | L31: =+Bron!L32 -> woonplaats 31
J32: =+Bron!I33 -> 32 | K32: =+Bron!K33 -> adres 32 | L32: =+Bron!L33 -> woonplaats 32
J33: =+Bron!I34 -> 16 | K33: =+Bron!K34 -> adres 33 | L33: =+Bron!L34 -> woonplaats 33
J34: =+Bron!I35 -> 9 | K34: =+Bron!K35 -> adres 34 | L34: =+Bron!L35 -> woonplaats 34
J35: =+Bron!I36 -> 35 | K35: =+Bron!K36 -> adres 35 | L35: =+Bron!L36 -> woonplaats 35
J36: =+Bron!I37 -> 7 | K36: =+Bron!K37 -> adres 36 | L36: =+Bron!L37 -> woonplaats 36
J37: =+Bron!I38 -> 30 | K37: =+Bron!K38 -> adres 37 | L37: =+Bron!L38 -> woonplaats 37
J38: =+Bron!I39 -> 22 | K38: =+Bron!K39 -> adres 38 | L38: =+Bron!L39 -> woonplaats 38
J39: =+Bron!I40 -> 40 | K39: =+Bron!K40 -> adres 39 | L39: =+Bron!L40 -> woonplaats 39
F40: =SUM(F18:F39) -> 10000 | J40: =+Bron!I41 -> 26 | K40: =+Bron!K41 -> adres 40 | L40: =+Bron!L41 -> woonplaats 40
D41: Verzendkosten | F41: 5 | J41: =+Bron!I42 -> 28 | K41: =+Bron!K42 -> adres 41 | L41: =+Bron!L42 -> woonplaats 41
D42: B.t.w. | E42: 0.19 | F42: =+F40/1*E42 -> 1900 | J42: =+Bron!I43 -> 0 | K42: =+Bron!K43 -> 0 | L42: =+Bron!L43 -> 0
F43: =+F40+F41+F42 -> 11905 | J43: =+Bron!I44 -> 0 | K43: =+Bron!K44 -> 0 | L43: =+Bron!L44 -> 0
J44: =+Bron!I45 -> 0 | K44: =+Bron!K45 -> 0 | L44: =+Bron!L45 -> 0
B45: Graag ontvangen wij uw betaling binnen 14 dagen na factuurdatum o.o.v het factuurnummer. | J45: =+Bron!I46 -> 0 | K45: =+Bron!K46 -> 0 | L45: =+Bron!L46 -> 0
J46: =+Bron!I47 -> 0 | K46: =+Bron!K47 -> 0 | L46: =+Bron!L47 -> 0

Sheet Bron
B1: Grootb.rek. inkoop | D1: Grootb.rek. verkoop | F1: Artikelen | G1: Kolom1 | I1: Debiteuren | J1: Kolom3 | K1: Kolom1 | L1: Kolom2
A2: 1 | B2: * Investeringen | D2: * Omzet | F2: 100 | G2: Inventaris > € 500,00 | I2: 18 | J2: ADN | K2: adres 2 | L2: woonplaats 2
A3: 2 | B3: 0100 Inventaris > € 500,00 | D3: 8000 Omzet 0.0% | F3: 4860 | G3: Abonnement/Contributies | I3: 43 | J3: Anwi Pro Info | K3: adres 3 | L3: woonplaats 3
A4: 3 | D4: 8010 Omzet (laag) | F4: 4820 | G4: Accountantskosten | I4: 21 | J4: Beek Logistiek Service | K4: adres 4 | L4: woonplaats 4 | N4: q
A5: 4 | B5: * Huisvestingskosten | D5: 8020 Omzet (hoog) | F5: 4400 | G5: Advertentiekosten | I5: 42 | J5: Calls and More | K5: adres 5 | L5: woonplaats 5 | N5: SORTEREN Klik op het driehoekje in de bovenste rij van de kolommen
A6: 5 | B6: 4200 Huur | D6: 8021 Omzet b.t..w. verlegd | F6: 4850 | G6: Automatiseringskosten | I6: 29 | J6: Check Your Service | K6: adres 6 | L6: woonplaats 6
A7: 6 | B7: 4280 Verzekeringen o/g | F7: 4291 | G7: Belastingen o/g | I7: 41 | J7: CYS | K7: adres 7 | L7: woonplaats 7
A8: 7 | B8: 4290 Schoonmaakkosten | F8: 4420 | G8: Beurskosten | I8: 8 | J8: Dawi Fieldservice b.v. | K8: adres 8 | L8: woonplaats 8
A9: 8 | B9: 4291 Belastingen o/g | F9: 4995 | G9: Boek en betalingsverschillen | I9: 31 | J9: Duo View | K9: adres 9 | L9: woonplaats 9
A10: 9 | B10: 4295 Overige huisvestingskosten | F10: 4500 | G10: Brandstof/Kilometer vergoeding bedrijfsauto | I10: 13 | J10: European Data Collection Center | K10: adres 10 | L10: woonplaats 10
A11: 10 | F11: 4840 | G11: Drukwerk | I11: 15 | J11: Hans Buurman Team b .v. | K11: adres 11 | L11: woonplaats 11
A12: 11 | B12: * Promotiekosten | F12: 4200 | G12: Huur | I12: 17 | J12: IBT marktonderzoek | K12: adres 12 | L12: woonplaats 12 | N12: Bt.w. laag | O12: 6
A13: 12 | B13: 4400 Advertentiekosten | F13: 4825 | G13: Incassokosten | I13: 27 | J13: Interview NSS | K13: adres 13 | L13: woonplaats 13 | N13: B.t.w. hoog | O13: 12
B14: 4410 Internet-Website kosten | F14: 6020 | G14: Inkoop (h) | I14: 24 | J14: Intomarkt gfk | K14: adres 14 | L14: woonplaats 14
B15: 4420 Beurskosten | F15: 6010 | G15: Inkoop (l) | I15: 37 | J15: Inview Veldwerk | K15: adres 15 | L15: woonplaats 15
B16: 4470 Verpakkingsmateriaal | F16: 6000 | G16: Inkoop 0.0% | I16: 33 | J16: Iquest | K16: adres 16 | L16: woonplaats 16
B17: 4480 Representatiekosten | F17: 6100 | G17: Inkoop overig | I17: 23 | J17: I-Quest | K17: adres 17 | L17: woonplaats 17
B18: 4490 Overige Verkoopkosten | F18: 4410 | G18: Internet-Website kosten | I18: 38 | J18: ITHAKA | K18: adres 18 | L18: woonplaats 18
F19: 4800 | G19: Kantoorbenodigdheden | I19: 4 | J19: ITS | K19: adres 19 | L19: woonplaats 19
B20: * Autokosten | F20: 4980 | G20: Klein inventaris/machines | I20: 25 | J20: Maassen van de Brink | K20: adres 20 | L20: woonplaats 20
B21: 4500 Brandstof | F21: 8030 | G21: Omzer doorberekende reiskosten | I21: 26 | J21: Mail Merge Nederland b.v. | K21: adres 21 | L21: woonplaats 21
B22: 4510 Onderhoudskosten bedrijfsauto | F22: 8020 | G22: Omzet (h) | I22: 27 | J22: Mobiel Centre | K22: adres 22 | L22: woonplaats 22
B23: 4520 Verzekering bedrijfsauto | F23: 8010 | G23: Omzet (l) | I23: 0 | J23: Nieuwe debiteur | K23: bel roelof | L23: 06-37025889
B24: 4595 Overige kosten bedrijfsauto | F24: 8000 | G24: Omzet 0.0% | I24: 6 | J24: Olgivie Indumargroep | K24: adres 23 | L24: woonplaats 23
F25: 8021 | G25: Omzet b.t..w. verlegd | I25: 39 | J25: Popai | K25: adres 24 | L25: woonplaats 24
B26: * Kantoorkosten | F26: 4985 | G26: Onderhoud inventaris/machines | I26: 11 | J26: Pro Info | K26: adres 25 | L26: woonplaats 25
B27: 4800 Kantoorbenodigdheden | F27: 4510 | G27: Onderhoudskosten bedrijfsauto | I27: 5 | J27: R & M Matrix | K27: adres 26 | L27: woonplaats 26
B28: 4810 Porto/Vrachtkosten | F28: 4935 | G28: Opleidingskosten | I28: 1 | J28: Research Resouces Rotterdam bv. | K28: adres 27 | L28: woonplaats 27
B29: 4820 Accountantskosten | F29: 4890 | G29: Overige administratiekosten | I29: 34 | J29: Retail Merchandising | K29: adres 28 | L29: woonplaats 28
B30: 4830 Telefoon/Faxkosten | F30: 4998 | G30: Overige algemene kosten | I30: 36 | J30: Retail Reality | K30: adres 29 | L30: woonplaats 29
B31: 4840 Drukwerk | F31: 4997 | G31: Overige belastingen | I31: 2 | J31: Rie Schouten | K31: adres 30 | L31: woonplaats 30
B32: 4850 Automatiseringskosten | F32: 4295 | G32: Overige huisvestingskosten | I32: 20 | J32: Rijsdijk Veldwerk | K32: adres 31 | L32: woonplaats 31
B33: 4860 Abonnement/Contributies | F33: 4595 | G33: Overige kosten bedrijfsauto | I33: 32 | J33: RR Roterdam | K33: adres 32 | L33: woonplaats 32
F34: 4490 | G34: Overige Verkoopkosten | I34: 16 | J34: RSVO | K34: adres 33 | L34: woonplaats 33
B35: * Algemene kosten | F35: 4810 | G35: Porto/Vrachtkosten | I35: 9 | J35: Skim Field Services | K35: adres 34 | L35: woonplaats 34
B36: 4890 Overige administratiekosten | F36: 4930 | G36: Reiskosten algemeen | I36: 35 | J36: Store Support | K36: adres 35 | L36: woonplaats 35
B37: 4910 Verzekeringen algemeen | F37: 4480 | G37: Representatiekosten | I37: 7 | J37: Survey Data | K37: adres 36 | L37: woonplaats 36
B38: 4930 Reiskosten algemeen | F38: 4290 | G38: Schoonmaakkosten | I38: 30 | J38: Synovate Interview | K38: adres 37 | L38: woonplaats 37
B39: 4931 Verblijfskosten | F39: 4830 | G39: Telefoon/Faxkosten | I39: 22 | J39: Team Vier | K39: adres 38 | L39: woonplaats 38
B40: 4935 Opleidingskosten | F40: 4931 | G40: Verblijfskosten | I40: 40 | J40: TNS Nipo | K40: adres 39 | L40: woonplaats 39
B41: 4980 Klein inventaris/machines | F41: 4470 | G41: Verpakkingsmateriaal | I41: 26 | J41: Trendbox | K41: adres 40 | L41: woonplaats 40
B42: 4985 Onderhoud inventaris/machines | F42: 4520 | G42: Verzekering bedrijfsauto | I42: 28 | J42: Veldwerk Optimaal | K42: adres 41 | L42: woonplaats 41
B43: 4995 Boek en betalingsverschillen | F43: 4910 | G43: Verzekeringen algemeen
B44: 4997 Overige belastingen | F44: 4280 | G44: Verzekeringen o/g
B45: 4998 Overige algemene kosten
B47: * Inkoop
B48: 6000 Inkoop 0.0%
B49: 6010 Inkoop (l)
B50: 6020 Inkoop (h)
B51: 6100 Inkoop overig
B52: 8000 Omzet 0.0%
B53: 8010 Omzet (laag)
B54: 8020 Omzet (hoog)
B55: 8021 Omzet b.t..w. verlegd

Sheet KasBank
B3: Nr. | D3: Datum | E3: Omschrijving | F3: Kas | G3: Bank
E5: Begin saldo | F5: 100
B6: =+'Inkoop - Kosten'!#REF! ->  | C6: =+'Inkoop - Kosten'!C8 -> 15001 | D6: =+IF('Inkoop - Kosten'!D8=0,"",'Inkoop - Kosten'!D8) -> 2014-12-10 | E6: =+IF('Inkoop - Kosten'!E8=0,"",'Inkoop - Kosten'!E8) -> leverancier b.v. | F6: =-IF('Inkoop - Kosten'!N7=0,"",'Inkoop - Kosten'!N7) ->  | G6: =-IF('Inkoop - Kosten'!O7=0,"",'Inkoop - Kosten'!O7) -> 
B7: =+'Inkoop - Kosten'!#REF! ->  | C7: =+'Inkoop - Kosten'!C9 -> 15002 | D7: =+IF('Inkoop - Kosten'!D9=0,"",'Inkoop - Kosten'!D9) -> 2014-12-13 | E7: =+IF('Inkoop - Kosten'!E9=0,"",'Inkoop - Kosten'!E9) -> de boer | F7: =+IF('Inkoop - Kosten'!N8=0,"",'Inkoop - Kosten'!N8) ->  | G7: =-IF('Inkoop - Kosten'!O8=0,"",'Inkoop - Kosten'!O8) -> 
B8: =+'Inkoop - Kosten'!#REF! ->  | C8: =+'Inkoop - Kosten'!C10 -> 15003 | D8: =+IF('Inkoop - Kosten'!D10=0,"",'Inkoop - Kosten'!D10) -> 2014-12-12 | E8: =+IF('Inkoop - Kosten'!E10=0,"",'Inkoop - Kosten'!E10) -> koster | F8: =+IF('Inkoop - Kosten'!N9=0,"",'Inkoop - Kosten'!N9) ->  | G8: =+IF('Inkoop - Kosten'!O9=0,"",'Inkoop - Kosten'!O9) -> 
B9: =+'Inkoop - Kosten'!#REF! ->  | C9: =+'Inkoop - Kosten'!C11 -> 15004 | D9: =+IF('Inkoop - Kosten'!D11=0,"",'Inkoop - Kosten'!D11) ->  | E9: =+IF('Inkoop - Kosten'!E11=0,"",'Inkoop - Kosten'!E11) ->  | F9: =+IF('Inkoop - Kosten'!N10=0,"",'Inkoop - Kosten'!N10) ->  | G9: =+IF('Inkoop - Kosten'!O10=0,"",'Inkoop - Kosten'!O10) -> 
B10: =+'Inkoop - Kosten'!#REF! ->  | C10: =+'Inkoop - Kosten'!C12 ->  | D10: =+IF('Inkoop - Kosten'!D12=0,"",'Inkoop - Kosten'!D12) ->  | E10: =+IF('Inkoop - Kosten'!E12=0,"",'Inkoop - Kosten'!E12) ->  | F10: =+IF('Inkoop - Kosten'!N11=0,"",'Inkoop - Kosten'!N11) ->  | G10: =+IF('Inkoop - Kosten'!O11=0,"",'Inkoop - Kosten'!O11) -> 
B11: =+'Inkoop - Kosten'!#REF! ->  | C11: =+'Inkoop - Kosten'!C13 ->  | D11: =+IF('Inkoop - Kosten'!D13=0,"",'Inkoop - Kosten'!D13) ->  | E11: =+IF('Inkoop - Kosten'!E13=0,"",'Inkoop - Kosten'!E13) ->  | F11: =+IF('Inkoop - Kosten'!N12=0,"",'Inkoop - Kosten'!N12) ->  | G11: =+IF('Inkoop - Kosten'!O12=0,"",'Inkoop - Kosten'!O12) -> 
B12: =+'Inkoop - Kosten'!#REF! ->  | C12: =+'Inkoop - Kosten'!C14 ->  | D12: =+IF('Inkoop - Kosten'!D14=0,"",'Inkoop - Kosten'!D14) ->  | E12: =+IF('Inkoop - Kosten'!E14=0,"",'Inkoop - Kosten'!E14) ->  | F12: =+IF('Inkoop - Kosten'!N13=0,"",'Inkoop - Kosten'!N13) ->  | G12: =+IF('Inkoop - Kosten'!O13=0,"",'Inkoop - Kosten'!O13) -> 
B13: =+'Inkoop - Kosten'!#REF! ->  | C13: =+'Inkoop - Kosten'!C15 ->  | D13: =+IF('Inkoop - Kosten'!D15=0,"",'Inkoop - Kosten'!D15) ->  | E13: =+IF('Inkoop - Kosten'!E15=0,"",'Inkoop - Kosten'!E15) ->  | F13: =+IF('Inkoop - Kosten'!N14=0,"",'Inkoop - Kosten'!N14) ->  | G13: =+IF('Inkoop - Kosten'!O14=0,"",'Inkoop - Kosten'!O14) -> 
B14: =+'Inkoop - Kosten'!#REF! ->  | C14: =+'Inkoop - Kosten'!C16 ->  | D14: =+IF('Inkoop - Kosten'!D16=0,"",'Inkoop - Kosten'!D16) ->  | E14: =+IF('Inkoop - Kosten'!E16=0,"",'Inkoop - Kosten'!E16) ->  | F14: =+IF('Inkoop - Kosten'!N15=0,"",'Inkoop - Kosten'!N15) ->  | G14: =+IF('Inkoop - Kosten'!O15=0,"",'Inkoop - Kosten'!O15) -> 
B15: =+'Inkoop - Kosten'!#REF! ->  | C15: =+'Inkoop - Kosten'!C17 ->  | D15: =+IF('Inkoop - Kosten'!D17=0,"",'Inkoop - Kosten'!D17) ->  | E15: =+IF('Inkoop - Kosten'!E17=0,"",'Inkoop - Kosten'!E17) ->  | F15: =+IF('Inkoop - Kosten'!N16=0,"",'Inkoop - Kosten'!N16) ->  | G15: =+IF('Inkoop - Kosten'!O16=0,"",'Inkoop - Kosten'!O16) -> 
B16: =+'Inkoop - Kosten'!#REF! ->  | C16: =+'Inkoop - Kosten'!C18 ->  | D16: =+IF('Inkoop - Kosten'!D18=0,"",'Inkoop - Kosten'!D18) ->  | E16: =+IF('Inkoop - Kosten'!E18=0,"",'Inkoop - Kosten'!E18) ->  | F16: =+IF('Inkoop - Kosten'!N17=0,"",'Inkoop - Kosten'!N17) ->  | G16: =+IF('Inkoop - Kosten'!O17=0,"",'Inkoop - Kosten'!O17) -> 
B17: =+'Inkoop - Kosten'!#REF! ->  | C17: =+'Inkoop - Kosten'!C19 ->  | D17: =+IF('Inkoop - Kosten'!D19=0,"",'Inkoop - Kosten'!D19) ->  | E17: =+IF('Inkoop - Kosten'!E19=0,"",'Inkoop - Kosten'!E19) ->  | F17: =+IF('Inkoop - Kosten'!N18=0,"",'Inkoop - Kosten'!N18) ->  | G17: =+IF('Inkoop - Kosten'!O18=0,"",'Inkoop - Kosten'!O18) -> 
B18: =+'Inkoop - Kosten'!#REF! ->  | C18: =+'Inkoop - Kosten'!C20 ->  | D18: =+IF('Inkoop - Kosten'!D20=0,"",'Inkoop - Kosten'!D20) ->  | E18: =+IF('Inkoop - Kosten'!E20=0,"",'Inkoop - Kosten'!E20) ->  | F18: =+IF('Inkoop - Kosten'!N19=0,"",'Inkoop - Kosten'!N19) ->  | G18: =+IF('Inkoop - Kosten'!O19=0,"",'Inkoop - Kosten'!O19) -> 
B19: =+'Inkoop - Kosten'!#REF! ->  | C19: =+'Inkoop - Kosten'!C21 ->  | D19: =+IF('Inkoop - Kosten'!D21=0,"",'Inkoop - Kosten'!D21) ->  | E19: =+IF('Inkoop - Kosten'!E21=0,"",'Inkoop - Kosten'!E21) ->  | F19: =+IF('Inkoop - Kosten'!N20=0,"",'Inkoop - Kosten'!N20) ->  | G19: =+IF('Inkoop - Kosten'!O20=0,"",'Inkoop - Kosten'!O20) -> 
B20: =+'Inkoop - Kosten'!#REF! ->  | C20: =+'Inkoop - Kosten'!C22 ->  | D20: =+IF('Inkoop - Kosten'!D22=0,"",'Inkoop - Kosten'!D22) ->  | E20: =+IF('Inkoop - Kosten'!E22=0,"",'Inkoop - Kosten'!E22) ->  | F20: =+IF('Inkoop - Kosten'!N21=0,"",'Inkoop - Kosten'!N21) ->  | G20: =+IF('Inkoop - Kosten'!O21=0,"",'Inkoop - Kosten'!O21) -> 
B21: =+'Inkoop - Kosten'!#REF! ->  | C21: =+'Inkoop - Kosten'!C23 ->  | D21: =+IF('Inkoop - Kosten'!D23=0,"",'Inkoop - Kosten'!D23) ->  | E21: =+IF('Inkoop - Kosten'!E23=0,"",'Inkoop - Kosten'!E23) ->  | F21: =+IF('Inkoop - Kosten'!N22=0,"",'Inkoop - Kosten'!N22) ->  | G21: =+IF('Inkoop - Kosten'!O22=0,"",'Inkoop - Kosten'!O22) -> 
B22: =+'Inkoop - Kosten'!#REF! ->  | C22: =+'Inkoop - Kosten'!C24 ->  | D22: =+IF('Inkoop - Kosten'!D24=0,"",'Inkoop - Kosten'!D24) ->  | E22: =+IF('Inkoop - Kosten'!E24=0,"",'Inkoop - Kosten'!E24) ->  | F22: =+IF('Inkoop - Kosten'!N23=0,"",'Inkoop - Kosten'!N23) ->  | G22: =+IF('Inkoop - Kosten'!O23=0,"",'Inkoop - Kosten'!O23) -> 
B23: =+'Inkoop - Kosten'!#REF! ->  | C23: =+'Inkoop - Kosten'!C25 ->  | D23: =+IF('Inkoop - Kosten'!D25=0,"",'Inkoop - Kosten'!D25) ->  | E23: =+IF('Inkoop - Kosten'!E25=0,"",'Inkoop - Kosten'!E25) ->  | F23: =+IF('Inkoop - Kosten'!N24=0,"",'Inkoop - Kosten'!N24) ->  | G23: =+IF('Inkoop - Kosten'!O24=0,"",'Inkoop - Kosten'!O24) -> 
B24: =+'Inkoop - Kosten'!#REF! ->  | C24: =+'Inkoop - Kosten'!C26 ->  | D24: =+IF('Inkoop - Kosten'!D26=0,"",'Inkoop - Kosten'!D26) ->  | E24: =+IF('Inkoop - Kosten'!E26=0,"",'Inkoop - Kosten'!E26) ->  | F24: =+IF('Inkoop - Kosten'!N25=0,"",'Inkoop - Kosten'!N25) ->  | G24: =+IF('Inkoop - Kosten'!O25=0,"",'Inkoop - Kosten'!O25) -> 
B25: =+'Inkoop - Kosten'!#REF! ->  | C25: =+'Inkoop - Kosten'!C27 ->  | D25: =+IF('Inkoop - Kosten'!D27=0,"",'Inkoop - Kosten'!D27) ->  | E25: =+IF('Inkoop - Kosten'!E27=0,"",'Inkoop - Kosten'!E27) ->  | F25: =+IF('Inkoop - Kosten'!N26=0,"",'Inkoop - Kosten'!N26) ->  | G25: =+IF('Inkoop - Kosten'!O26=0,"",'Inkoop - Kosten'!O26) -> 
B26: =+'Inkoop - Kosten'!#REF! ->  | C26: =+'Inkoop - Kosten'!C28 ->  | D26: =+IF('Inkoop - Kosten'!D28=0,"",'Inkoop - Kosten'!D28) ->  | E26: =+IF('Inkoop - Kosten'!E28=0,"",'Inkoop - Kosten'!E28) ->  | F26: =+IF('Inkoop - Kosten'!N27=0,"",'Inkoop - Kosten'!N27) ->  | G26: =+IF('Inkoop - Kosten'!O27=0,"",'Inkoop - Kosten'!O27) -> 
B27: =+'Inkoop - Kosten'!#REF! ->  | C27: =+'Inkoop - Kosten'!C29 ->  | D27: =+IF('Inkoop - Kosten'!D29=0,"",'Inkoop - Kosten'!D29) ->  | E27: =+IF('Inkoop - Kosten'!E29=0,"",'Inkoop - Kosten'!E29) ->  | F27: =+IF('Inkoop - Kosten'!N28=0,"",'Inkoop - Kosten'!N28) ->  | G27: =+IF('Inkoop - Kosten'!O28=0,"",'Inkoop - Kosten'!O28) -> 
B28: =+'Inkoop - Kosten'!#REF! ->  | C28: =+'Inkoop - Kosten'!C30 ->  | D28: =+IF('Inkoop - Kosten'!D30=0,"",'Inkoop - Kosten'!D30) ->  | E28: =+IF('Inkoop - Kosten'!E30=0,"",'Inkoop - Kosten'!E30) ->  | F28: =+IF('Inkoop - Kosten'!N29=0,"",'Inkoop - Kosten'!N29) ->  | G28: =+IF('Inkoop - Kosten'!O29=0,"",'Inkoop - Kosten'!O29) -> 
B29: =+'Inkoop - Kosten'!#REF! ->  | C29: =+'Inkoop - Kosten'!C31 ->  | D29: =+IF('Inkoop - Kosten'!D31=0,"",'Inkoop - Kosten'!D31) ->  | E29: =+IF('Inkoop - Kosten'!E31=0,"",'Inkoop - Kosten'!E31) ->  | F29: =+IF('Inkoop - Kosten'!N30=0,"",'Inkoop - Kosten'!N30) ->  | G29: =+IF('Inkoop - Kosten'!O30=0,"",'Inkoop - Kosten'!O30) -> 
B30: =+'Inkoop - Kosten'!#REF! ->  | C30: =+'Inkoop - Kosten'!C32 ->  | D30: =+IF('Inkoop - Kosten'!D32=0,"",'Inkoop - Kosten'!D32) ->  | E30: =+IF('Inkoop - Kosten'!E32=0,"",'Inkoop - Kosten'!E32) ->  | F30: =+IF('Inkoop - Kosten'!N31=0,"",'Inkoop - Kosten'!N31) ->  | G30: =+IF('Inkoop - Kosten'!O31=0,"",'Inkoop - Kosten'!O31) -> 
B31: =+'Inkoop - Kosten'!#REF! ->  | C31: =+'Inkoop - Kosten'!C33 ->  | D31: =+IF('Inkoop - Kosten'!D33=0,"",'Inkoop - Kosten'!D33) ->  | E31: =+IF('Inkoop - Kosten'!E33=0,"",'Inkoop - Kosten'!E33) ->  | F31: =+IF('Inkoop - Kosten'!N32=0,"",'Inkoop - Kosten'!N32) ->  | G31: =+IF('Inkoop - Kosten'!O32=0,"",'Inkoop - Kosten'!O32) -> 
B32: =+'Inkoop - Kosten'!#REF! ->  | C32: =+'Inkoop - Kosten'!C34 ->  | D32: =+IF('Inkoop - Kosten'!D34=0,"",'Inkoop - Kosten'!D34) ->  | E32: =+IF('Inkoop - Kosten'!E34=0,"",'Inkoop - Kosten'!E34) ->  | F32: =+IF('Inkoop - Kosten'!N33=0,"",'Inkoop - Kosten'!N33) ->  | G32: =+IF('Inkoop - Kosten'!O33=0,"",'Inkoop - Kosten'!O33) -> 
B33: =+'Inkoop - Kosten'!#REF! ->  | C33: =+'Inkoop - Kosten'!C35 ->  | D33: =+IF('Inkoop - Kosten'!D35=0,"",'Inkoop - Kosten'!D35) ->  | E33: =+IF('Inkoop - Kosten'!E35=0,"",'Inkoop - Kosten'!E35) ->  | F33: =+IF('Inkoop - Kosten'!N34=0,"",'Inkoop - Kosten'!N34) ->  | G33: =+IF('Inkoop - Kosten'!O34=0,"",'Inkoop - Kosten'!O34) -> 
B34: =+'Inkoop - Kosten'!#REF! ->  | C34: =+'Inkoop - Kosten'!C36 ->  | D34: =+IF('Inkoop - Kosten'!D36=0,"",'Inkoop - Kosten'!D36) ->  | E34: =+IF('Inkoop - Kosten'!E36=0,"",'Inkoop - Kosten'!E36) ->  | F34: =+IF('Inkoop - Kosten'!N35=0,"",'Inkoop - Kosten'!N35) ->  | G34: =+IF('Inkoop - Kosten'!O35=0,"",'Inkoop - Kosten'!O35) -> 
B35: =+'Inkoop - Kosten'!#REF! ->  | C35: =+'Inkoop - Kosten'!C37 ->  | D35: =+IF('Inkoop - Kosten'!D37=0,"",'Inkoop - Kosten'!D37) ->  | E35: =+IF('Inkoop - Kosten'!E37=0,"",'Inkoop - Kosten'!E37) ->  | F35: =+IF('Inkoop - Kosten'!N36=0,"",'Inkoop - Kosten'!N36) ->  | G35: =+IF('Inkoop - Kosten'!O36=0,"",'Inkoop - Kosten'!O36) -> 
B36: =+'Inkoop - Kosten'!#REF! ->  | C36: =+'Inkoop - Kosten'!C38 ->  | D36: =+IF('Inkoop - Kosten'!D38=0,"",'Inkoop - Kosten'!D38) ->  | E36: =+IF('Inkoop - Kosten'!E38=0,"",'Inkoop - Kosten'!E38) ->  | F36: =+IF('Inkoop - Kosten'!N37=0,"",'Inkoop - Kosten'!N37) ->  | G36: =+IF('Inkoop - Kosten'!O37=0,"",'Inkoop - Kosten'!O37) -> 
B37: =+'Inkoop - Kosten'!#REF! ->  | C37: =+'Inkoop - Kosten'!C39 ->  | D37: =+IF('Inkoop - Kosten'!D39=0,"",'Inkoop - Kosten'!D39) ->  | E37: =+IF('Inkoop - Kosten'!E39=0,"",'Inkoop - Kosten'!E39) ->  | F37: =+IF('Inkoop - Kosten'!N38=0,"",'Inkoop - Kosten'!N38) ->  | G37: =+IF('Inkoop - Kosten'!O38=0,"",'Inkoop - Kosten'!O38) -> 
B38: =+'Inkoop - Kosten'!#REF! ->  | C38: =+'Inkoop - Kosten'!C40 ->  | D38: =+IF('Inkoop - Kosten'!D40=0,"",'Inkoop - Kosten'!D40) ->  | E38: =+IF('Inkoop - Kosten'!E40=0,"",'Inkoop - Kosten'!E40) ->  | F38: =+IF('Inkoop - Kosten'!N39=0,"",'Inkoop - Kosten'!N39) ->  | G38: =+IF('Inkoop - Kosten'!O39=0,"",'Inkoop - Kosten'!O39) -> 
B39: =+'Inkoop - Kosten'!#REF! ->  | C39: =+'Inkoop - Kosten'!C41 ->  | D39: =+IF('Inkoop - Kosten'!D41=0,"",'Inkoop - Kosten'!D41) ->  | E39: =+IF('Inkoop - Kosten'!E41=0,"",'Inkoop - Kosten'!E41) ->  | F39: =+IF('Inkoop - Kosten'!N40=0,"",'Inkoop - Kosten'!N40) ->  | G39: =+IF('Inkoop - Kosten'!O40=0,"",'Inkoop - Kosten'!O40) -> 
B40: =+'Inkoop - Kosten'!#REF! ->  | C40: =+'Inkoop - Kosten'!C42 ->  | D40: =+IF('Inkoop - Kosten'!D42=0,"",'Inkoop - Kosten'!D42) ->  | E40: =+IF('Inkoop - Kosten'!E42=0,"",'Inkoop - Kosten'!E42) ->  | F40: =+IF('Inkoop - Kosten'!N41=0,"",'Inkoop - Kosten'!N41) ->  | G40: =+IF('Inkoop - Kosten'!O41=0,"",'Inkoop - Kosten'!O41) -> 
B41: =+'Inkoop - Kosten'!#REF! ->  | C41: =+'Inkoop - Kosten'!C43 ->  | D41: =+IF('Inkoop - Kosten'!D43=0,"",'Inkoop - Kosten'!D43) ->  | E41: =+IF('Inkoop - Kosten'!E43=0,"",'Inkoop - Kosten'!E43) ->  | F41: =+IF('Inkoop - Kosten'!N42=0,"",'Inkoop - Kosten'!N42) ->  | G41: =+IF('Inkoop - Kosten'!O42=0,"",'Inkoop - Kosten'!O42) -> 
B42: =+'Inkoop - Kosten'!#REF! ->  | C42: =+'Inkoop - Kosten'!C44 ->  | D42: =+IF('Inkoop - Kosten'!D44=0,"",'Inkoop - Kosten'!D44) ->  | E42: =+IF('Inkoop - Kosten'!E44=0,"",'Inkoop - Kosten'!E44) ->  | F42: =+IF('Inkoop - Kosten'!N43=0,"",'Inkoop - Kosten'!N43) ->  | G42: =+IF('Inkoop - Kosten'!O43=0,"",'Inkoop - Kosten'!O43) -> 
B43: =+'Inkoop - Kosten'!#REF! ->  | C43: =+'Inkoop - Kosten'!C45 ->  | D43: =+IF('Inkoop - Kosten'!D45=0,"",'Inkoop - Kosten'!D45) ->  | E43: =+IF('Inkoop - Kosten'!E45=0,"",'Inkoop - Kosten'!E45) ->  | F43: =+IF('Inkoop - Kosten'!N44=0,"",'Inkoop - Kosten'!N44) ->  | G43: =+IF('Inkoop - Kosten'!O44=0,"",'Inkoop - Kosten'!O44) -> 
B44: =+'Inkoop - Kosten'!#REF! ->  | C44: =+'Inkoop - Kosten'!C46 ->  | D44: =+IF('Inkoop - Kosten'!D46=0,"",'Inkoop - Kosten'!D46) ->  | E44: =+IF('Inkoop - Kosten'!E46=0,"",'Inkoop - Kosten'!E46) ->  | F44: =+IF('Inkoop - Kosten'!N45=0,"",'Inkoop - Kosten'!N45) ->  | G44: =+IF('Inkoop - Kosten'!O45=0,"",'Inkoop - Kosten'!O45) -> 
B45: =+'Inkoop - Kosten'!#REF! ->  | C45: =+'Inkoop - Kosten'!C47 ->  | D45: =+IF('Inkoop - Kosten'!D47=0,"",'Inkoop - Kosten'!D47) ->  | E45: =+IF('Inkoop - Kosten'!E47=0,"",'Inkoop - Kosten'!E47) ->  | F45: =+IF('Inkoop - Kosten'!N46=0,"",'Inkoop - Kosten'!N46) ->  | G45: =+IF('Inkoop - Kosten'!O46=0,"",'Inkoop - Kosten'!O46) -> 
B46: =+'Inkoop - Kosten'!#REF! ->  | C46: =+'Inkoop - Kosten'!C48 ->  | D46: =+IF('Inkoop - Kosten'!D48=0,"",'Inkoop - Kosten'!D48) ->  | E46: =+IF('Inkoop - Kosten'!E48=0,"",'Inkoop - Kosten'!E48) ->  | F46: =+IF('Inkoop - Kosten'!N47=0,"",'Inkoop - Kosten'!N47) ->  | G46: =+IF('Inkoop - Kosten'!O47=0,"",'Inkoop - Kosten'!O47) -> 
B47: =+'Inkoop - Kosten'!#REF! ->  | C47: =+'Inkoop - Kosten'!C49 ->  | D47: =+IF('Inkoop - Kosten'!D49=0,"",'Inkoop - Kosten'!D49) ->  | E47: =+IF('Inkoop - Kosten'!E49=0,"",'Inkoop - Kosten'!E49) ->  | F47: =+IF('Inkoop - Kosten'!N48=0,"",'Inkoop - Kosten'!N48) ->  | G47: =+IF('Inkoop - Kosten'!O48=0,"",'Inkoop - Kosten'!O48) -> 
B48: =+'Inkoop - Kosten'!#REF! ->  | C48: =+'Inkoop - Kosten'!C50 ->  | D48: =+IF('Inkoop - Kosten'!D50=0,"",'Inkoop - Kosten'!D50) ->  | E48: =+IF('Inkoop - Kosten'!E50=0,"",'Inkoop - Kosten'!E50) ->  | F48: =+IF('Inkoop - Kosten'!N49=0,"",'Inkoop - Kosten'!N49) ->  | G48: =+IF('Inkoop - Kosten'!O49=0,"",'Inkoop - Kosten'!O49) -> 
B49: =+'Inkoop - Kosten'!#REF! ->  | C49: =+'Inkoop - Kosten'!C51 ->  | D49: =+IF('Inkoop - Kosten'!D51=0,"",'Inkoop - Kosten'!D51) ->  | E49: =+IF('Inkoop - Kosten'!E51=0,"",'Inkoop - Kosten'!E51) ->  | F49: =+IF('Inkoop - Kosten'!N50=0,"",'Inkoop - Kosten'!N50) ->  | G49: =+IF('Inkoop - Kosten'!O50=0,"",'Inkoop - Kosten'!O50) -> 
B50: =+'Inkoop - Kosten'!#REF! ->  | C50: =+'Inkoop - Kosten'!C52 ->  | D50: =+IF('Inkoop - Kosten'!D52=0,"",'Inkoop - Kosten'!D52) ->  | E50: =+IF('Inkoop - Kosten'!E52=0,"",'Inkoop - Kosten'!E52) ->  | F50: =+IF('Inkoop - Kosten'!N51=0,"",'Inkoop - Kosten'!N51) ->  | G50: =+IF('Inkoop - Kosten'!O51=0,"",'Inkoop - Kosten'!O51) -> 
B51: =+'Inkoop - Kosten'!#REF! ->  | C51: =+'Inkoop - Kosten'!C53 ->  | D51: =+IF('Inkoop - Kosten'!D53=0,"",'Inkoop - Kosten'!D53) ->  | E51: =+IF('Inkoop - Kosten'!E53=0,"",'Inkoop - Kosten'!E53) ->  | F51: =+IF('Inkoop - Kosten'!N52=0,"",'Inkoop - Kosten'!N52) ->  | G51: =+IF('Inkoop - Kosten'!O52=0,"",'Inkoop - Kosten'!O52) -> 
B52: =+'Inkoop - Kosten'!#REF! ->  | C52: =+'Inkoop - Kosten'!C54 ->  | D52: =+IF('Inkoop - Kosten'!D54=0,"",'Inkoop - Kosten'!D54) ->  | E52: =+IF('Inkoop - Kosten'!E54=0,"",'Inkoop - Kosten'!E54) ->  | F52: =+IF('Inkoop - Kosten'!N53=0,"",'Inkoop - Kosten'!N53) ->  | G52: =+IF('Inkoop - Kosten'!O53=0,"",'Inkoop - Kosten'!O53) -> 
B53: =+'Inkoop - Kosten'!#REF! ->  | C53: =+'Inkoop - Kosten'!C55 ->  | D53: =+IF('Inkoop - Kosten'!D55=0,"",'Inkoop - Kosten'!D55) ->  | E53: =+IF('Inkoop - Kosten'!E55=0,"",'Inkoop - Kosten'!E55) ->  | F53: =+IF('Inkoop - Kosten'!N54=0,"",'Inkoop - Kosten'!N54) ->  | G53: =+IF('Inkoop - Kosten'!O54=0,"",'Inkoop - Kosten'!O54) -> 
B54: =+'Inkoop - Kosten'!#REF! ->  | C54: =+'Inkoop - Kosten'!C56 ->  | D54: =+IF('Inkoop - Kosten'!D56=0,"",'Inkoop - Kosten'!D56) ->  | E54: =+IF('Inkoop - Kosten'!E56=0,"",'Inkoop - Kosten'!E56) ->  | F54: =+IF('Inkoop - Kosten'!N55=0,"",'Inkoop - Kosten'!N55) ->  | G54: =+IF('Inkoop - Kosten'!O55=0,"",'Inkoop - Kosten'!O55) -> 
B55: =+'Inkoop - Kosten'!#REF! ->  | C55: =+'Inkoop - Kosten'!C57 ->  | D55: =+IF('Inkoop - Kosten'!D57=0,"",'Inkoop - Kosten'!D57) ->  | E55: =+IF('Inkoop - Kosten'!E57=0,"",'Inkoop - Kosten'!E57) ->  | F55: =+IF('Inkoop - Kosten'!N56=0,"",'Inkoop - Kosten'!N56) ->  | G55: =+IF('Inkoop - Kosten'!O56=0,"",'Inkoop - Kosten'!O56) -> 
B56: =+'Inkoop - Kosten'!#REF! ->  | C56: =+'Inkoop - Kosten'!C58 ->  | D56: =+IF('Inkoop - Kosten'!D58=0,"",'Inkoop - Kosten'!D58) ->  | E56: =+IF('Inkoop - Kosten'!E58=0,"",'Inkoop - Kosten'!E58) ->  | F56: =+IF('Inkoop - Kosten'!N57=0,"",'Inkoop - Kosten'!N57) ->  | G56: =+IF('Inkoop - Kosten'!O57=0,"",'Inkoop - Kosten'!O57) -> 
B57: =+'Inkoop - Kosten'!#REF! ->  | C57: =+'Inkoop - Kosten'!C59 ->  | D57: =+IF('Inkoop - Kosten'!D59=0,"",'Inkoop - Kosten'!D59) ->  | E57: =+IF('Inkoop - Kosten'!E59=0,"",'Inkoop - Kosten'!E59) ->  | F57: =+IF('Inkoop - Kosten'!N58=0,"",'Inkoop - Kosten'!N58) ->  | G57: =+IF('Inkoop - Kosten'!O58=0,"",'Inkoop - Kosten'!O58) -> 
B58: =+'Inkoop - Kosten'!#REF! ->  | C58: =+'Inkoop - Kosten'!C60 ->  | D58: =+IF('Inkoop - Kosten'!D60=0,"",'Inkoop - Kosten'!D60) ->  | E58: =+IF('Inkoop - Kosten'!E60=0,"",'Inkoop - Kosten'!E60) ->  | F58: =+IF('Inkoop - Kosten'!N59=0,"",'Inkoop - Kosten'!N59) ->  | G58: =+IF('Inkoop - Kosten'!O59=0,"",'Inkoop - Kosten'!O59) -> 
B59: =+'Inkoop - Kosten'!#REF! ->  | C59: =+'Inkoop - Kosten'!C61 ->  | D59: =+IF('Inkoop - Kosten'!D61=0,"",'Inkoop - Kosten'!D61) ->  | E59: =+IF('Inkoop - Kosten'!E61=0,"",'Inkoop - Kosten'!E61) ->  | F59: =+IF('Inkoop - Kosten'!N60=0,"",'Inkoop - Kosten'!N60) ->  | G59: =+IF('Inkoop - Kosten'!O60=0,"",'Inkoop - Kosten'!O60) -> 
B60: =+'Inkoop - Kosten'!#REF! ->  | C60: =+'Inkoop - Kosten'!C62 ->  | D60: =+IF('Inkoop - Kosten'!D62=0,"",'Inkoop - Kosten'!D62) ->  | E60: =+IF('Inkoop - Kosten'!E62=0,"",'Inkoop - Kosten'!E62) ->  | F60: =+IF('Inkoop - Kosten'!N61=0,"",'Inkoop - Kosten'!N61) ->  | G60: =+IF('Inkoop - Kosten'!O61=0,"",'Inkoop - Kosten'!O61) -> 
B61: =+'Inkoop - Kosten'!#REF! ->  | C61: =+'Inkoop - Kosten'!C63 ->  | D61: =+IF('Inkoop - Kosten'!D63=0,"",'Inkoop - Kosten'!D63) ->  | E61: =+IF('Inkoop - Kosten'!E63=0,"",'Inkoop - Kosten'!E63) ->  | F61: =+IF('Inkoop - Kosten'!N62=0,"",'Inkoop - Kosten'!N62) ->  | G61: =+IF('Inkoop - Kosten'!O62=0,"",'Inkoop - Kosten'!O62) -> 
B62: =+'Inkoop - Kosten'!#REF! ->  | C62: =+'Inkoop - Kosten'!C64 ->  | D62: =+IF('Inkoop - Kosten'!D64=0,"",'Inkoop - Kosten'!D64) ->  | E62: =+IF('Inkoop - Kosten'!E64=0,"",'Inkoop - Kosten'!E64) ->  | F62: =+IF('Inkoop - Kosten'!N63=0,"",'Inkoop - Kosten'!N63) ->  | G62: =+IF('Inkoop - Kosten'!O63=0,"",'Inkoop - Kosten'!O63) -> 
B63: =+'Inkoop - Kosten'!#REF! ->  | C63: =+'Inkoop - Kosten'!C65 ->  | D63: =+IF('Inkoop - Kosten'!D65=0,"",'Inkoop - Kosten'!D65) ->  | E63: =+IF('Inkoop - Kosten'!E65=0,"",'Inkoop - Kosten'!E65) ->  | F63: =+IF('Inkoop - Kosten'!N64=0,"",'Inkoop - Kosten'!N64) ->  | G63: =+IF('Inkoop - Kosten'!O64=0,"",'Inkoop - Kosten'!O64) -> 
B64: =+'Inkoop - Kosten'!#REF! ->  | C64: =+'Inkoop - Kosten'!C66 ->  | D64: =+IF('Inkoop - Kosten'!D66=0,"",'Inkoop - Kosten'!D66) ->  | E64: =+IF('Inkoop - Kosten'!E66=0,"",'Inkoop - Kosten'!E66) ->  | F64: =+IF('Inkoop - Kosten'!N65=0,"",'Inkoop - Kosten'!N65) ->  | G64: =+IF('Inkoop - Kosten'!O65=0,"",'Inkoop - Kosten'!O65) -> 
B65: =+'Inkoop - Kosten'!#REF! ->  | C65: =+'Inkoop - Kosten'!C67 ->  | D65: =+IF('Inkoop - Kosten'!D67=0,"",'Inkoop - Kosten'!D67) ->  | E65: =+IF('Inkoop - Kosten'!E67=0,"",'Inkoop - Kosten'!E67) ->  | F65: =+IF('Inkoop - Kosten'!N66=0,"",'Inkoop - Kosten'!N66) ->  | G65: =+IF('Inkoop - Kosten'!O66=0,"",'Inkoop - Kosten'!O66) -> 
B66: =+'Inkoop - Kosten'!#REF! ->  | C66: =+'Inkoop - Kosten'!C68 ->  | D66: =+IF('Inkoop - Kosten'!D68=0,"",'Inkoop - Kosten'!D68) ->  | E66: =+IF('Inkoop - Kosten'!E68=0,"",'Inkoop - Kosten'!E68) ->  | F66: =+IF('Inkoop - Kosten'!N67=0,"",'Inkoop - Kosten'!N67) ->  | G66: =+IF('Inkoop - Kosten'!O67=0,"",'Inkoop - Kosten'!O67) -> 
B67: =+'Inkoop - Kosten'!#REF! ->  | C67: =+'Inkoop - Kosten'!C69 ->  | D67: =+IF('Inkoop - Kosten'!D69=0,"",'Inkoop - Kosten'!D69) ->  | E67: =+IF('Inkoop - Kosten'!E69=0,"",'Inkoop - Kosten'!E69) ->  | F67: =+IF('Inkoop - Kosten'!N68=0,"",'Inkoop - Kosten'!N68) ->  | G67: =+IF('Inkoop - Kosten'!O68=0,"",'Inkoop - Kosten'!O68) -> 
B68: =+'Inkoop - Kosten'!#REF! ->  | C68: =+'Inkoop - Kosten'!C70 ->  | D68: =+IF('Inkoop - Kosten'!D70=0,"",'Inkoop - Kosten'!D70) ->  | E68: =+IF('Inkoop - Kosten'!E70=0,"",'Inkoop - Kosten'!E70) ->  | F68: =+IF('Inkoop - Kosten'!N69=0,"",'Inkoop - Kosten'!N69) ->  | G68: =+IF('Inkoop - Kosten'!O69=0,"",'Inkoop - Kosten'!O69) -> 
B69: =+'Inkoop - Kosten'!#REF! ->  | C69: =+'Inkoop - Kosten'!C71 ->  | D69: =+IF('Inkoop - Kosten'!D71=0,"",'Inkoop - Kosten'!D71) ->  | E69: =+IF('Inkoop - Kosten'!E71=0,"",'Inkoop - Kosten'!E71) ->  | F69: =+IF('Inkoop - Kosten'!N70=0,"",'Inkoop - Kosten'!N70) ->  | G69: =+IF('Inkoop - Kosten'!O70=0,"",'Inkoop - Kosten'!O70) -> 
B70: =+'Inkoop - Kosten'!#REF! ->  | C70: =+'Inkoop - Kosten'!C72 ->  | D70: =+IF('Inkoop - Kosten'!D72=0,"",'Inkoop - Kosten'!D72) ->  | E70: =+IF('Inkoop - Kosten'!E72=0,"",'Inkoop - Kosten'!E72) ->  | F70: =+IF('Inkoop - Kosten'!N71=0,"",'Inkoop - Kosten'!N71) ->  | G70: =+IF('Inkoop - Kosten'!O71=0,"",'Inkoop - Kosten'!O71) -> 
B71: =+'Inkoop - Kosten'!#REF! ->  | C71: =+'Inkoop - Kosten'!C73 ->  | D71: =+IF('Inkoop - Kosten'!D73=0,"",'Inkoop - Kosten'!D73) ->  | E71: =+IF('Inkoop - Kosten'!E73=0,"",'Inkoop - Kosten'!E73) ->  | F71: =+IF('Inkoop - Kosten'!N72=0,"",'Inkoop - Kosten'!N72) ->  | G71: =+IF('Inkoop - Kosten'!O72=0,"",'Inkoop - Kosten'!O72) -> 
B72: =+'Inkoop - Kosten'!#REF! ->  | C72: =+'Inkoop - Kosten'!C74 ->  | D72: =+IF('Inkoop - Kosten'!D74=0,"",'Inkoop - Kosten'!D74) ->  | E72: =+IF('Inkoop - Kosten'!E74=0,"",'Inkoop - Kosten'!E74) ->  | F72: =+IF('Inkoop - Kosten'!N73=0,"",'Inkoop - Kosten'!N73) ->  | G72: =+IF('Inkoop - Kosten'!O73=0,"",'Inkoop - Kosten'!O73) -> 
B73: =+'Inkoop - Kosten'!#REF! ->  | C73: =+'Inkoop - Kosten'!C75 ->  | D73: =+IF('Inkoop - Kosten'!D75=0,"",'Inkoop - Kosten'!D75) ->  | E73: =+IF('Inkoop - Kosten'!E75=0,"",'Inkoop - Kosten'!E75) ->  | F73: =+IF('Inkoop - Kosten'!N74=0,"",'Inkoop - Kosten'!N74) ->  | G73: =+IF('Inkoop - Kosten'!O74=0,"",'Inkoop - Kosten'!O74) -> 
B74: =+'Inkoop - Kosten'!#REF! ->  | C74: =+'Inkoop - Kosten'!C76 ->  | D74: =+IF('Inkoop - Kosten'!D76=0,"",'Inkoop - Kosten'!D76) ->  | E74: =+IF('Inkoop - Kosten'!E76=0,"",'Inkoop - Kosten'!E76) ->  | F74: =+IF('Inkoop - Kosten'!N75=0,"",'Inkoop - Kosten'!N75) ->  | G74: =+IF('Inkoop - Kosten'!O75=0,"",'Inkoop - Kosten'!O75) -> 
B75: =+'Inkoop - Kosten'!#REF! ->  | C75: =+'Inkoop - Kosten'!C81 ->  | D75: =+IF('Inkoop - Kosten'!D81=0,"",'Inkoop - Kosten'!D81) ->  | E75: =+IF('Inkoop - Kosten'!E81=0,"",'Inkoop - Kosten'!E81) ->  | F75: =+IF('Inkoop - Kosten'!N80=0,"",'Inkoop - Kosten'!N80) ->  | G75: =+IF('Inkoop - Kosten'!O80=0,"",'Inkoop - Kosten'!O80) -> 
B76: =+'Inkoop - Kosten'!#REF! ->  | C76: =+'Inkoop - Kosten'!C82 ->  | D76: =+IF('Inkoop - Kosten'!D82=0,"",'Inkoop - Kosten'!D82) ->  | E76: =+IF('Inkoop - Kosten'!E82=0,"",'Inkoop - Kosten'!E82) ->  | F76: =+IF('Inkoop - Kosten'!N81=0,"",'Inkoop - Kosten'!N81) ->  | G76: =+IF('Inkoop - Kosten'!O81=0,"",'Inkoop - Kosten'!O81) -> 
B77: =+'Inkoop - Kosten'!#REF! ->  | C77: =+'Inkoop - Kosten'!C83 ->  | D77: =+IF('Inkoop - Kosten'!D83=0,"",'Inkoop - Kosten'!D83) ->  | E77: =+IF('Inkoop - Kosten'!E83=0,"",'Inkoop - Kosten'!E83) ->  | F77: =+IF('Inkoop - Kosten'!N82=0,"",'Inkoop - Kosten'!N82) ->  | G77: =+IF('Inkoop - Kosten'!O82=0,"",'Inkoop - Kosten'!O82) -> 
B78: =+'Inkoop - Kosten'!#REF! ->  | C78: =+'Inkoop - Kosten'!C84 ->  | D78: =+IF('Inkoop - Kosten'!D84=0,"",'Inkoop - Kosten'!D84) ->  | E78: =+IF('Inkoop - Kosten'!E84=0,"",'Inkoop - Kosten'!E84) ->  | F78: =+IF('Inkoop - Kosten'!N83=0,"",'Inkoop - Kosten'!N83) ->  | G78: =+IF('Inkoop - Kosten'!O83=0,"",'Inkoop - Kosten'!O83) -> 
B79: =+'Inkoop - Kosten'!#REF! ->  | C79: =+'Inkoop - Kosten'!C85 ->  | D79: =+IF('Inkoop - Kosten'!D85=0,"",'Inkoop - Kosten'!D85) ->  | E79: =+IF('Inkoop - Kosten'!E85=0,"",'Inkoop - Kosten'!E85) ->  | F79: =+IF('Inkoop - Kosten'!N84=0,"",'Inkoop - Kosten'!N84) ->  | G79: =+IF('Inkoop - Kosten'!O84=0,"",'Inkoop - Kosten'!O84) -> 
B80: =+'Inkoop - Kosten'!#REF! ->  | C80: =+'Inkoop - Kosten'!C86 ->  | D80: =+IF('Inkoop - Kosten'!D86=0,"",'Inkoop - Kosten'!D86) ->  | E80: =+IF('Inkoop - Kosten'!E86=0,"",'Inkoop - Kosten'!E86) ->  | F80: =+IF('Inkoop - Kosten'!N85=0,"",'Inkoop - Kosten'!N85) ->  | G80: =+IF('Inkoop - Kosten'!O85=0,"",'Inkoop - Kosten'!O85) -> 
D81: =+IF('Inkoop - Kosten'!D87=0,"",'Inkoop - Kosten'!D87) ->  | E81: =+IF('Inkoop - Kosten'!E87=0,"",'Inkoop - Kosten'!E87) -> telling | F81: =SUM(F6:F80) ->  | G81: =SUM(G6:G80) -> 
D82: =+IF('Inkoop - Kosten'!D89=0,"",'Inkoop - Kosten'!D89) ->  | E82: =+IF('Inkoop - Kosten'!E89=0,"",'Inkoop - Kosten'!E89) ->  | F82: =+IF('Inkoop - Kosten'!N87=0,"",'Inkoop - Kosten'!N87) ->  | G82: =+IF('Inkoop - Kosten'!O87=0,"",'Inkoop - Kosten'!O87) -> 
D83: =+IF('Inkoop - Kosten'!D90=0,"",'Inkoop - Kosten'!D90) ->  | E83: =+IF('Inkoop - Kosten'!E90=0,"",'Inkoop - Kosten'!E90) ->  | F83: =+IF('Inkoop - Kosten'!N89=0,"",'Inkoop - Kosten'!N89) ->  | G83: =+IF('Inkoop - Kosten'!O89=0,"",'Inkoop - Kosten'!O89) -> 

Sheet Offerte

Sheet Export
B1: INKOOP IMPORT
B2: fldDagboek | C2: fldBoekingcode | D2: Datum | E2: Grootboeknummer | F2: Debet | G2: Credit | H2: ImportBoekingID | I2: Volgnummer | J2: Boekstuk | K2: Omschrijving | L2: Relatiecode | M2: Factuurnummer | N2: Kostenplaatsnummer
A3: 1 | B3: 1600 | D3: =+'Inkoop - Kosten'!D8 -> 2014-12-10 | E3: =+$B$3 -> 1600 | G3: =+'Inkoop - Kosten'!G8 -> 227 | I3: 1 | J3: 15005 | K3: =+'Inkoop - Kosten'!E8 -> leverancier b.v. | L3: 2 | M3: =+'Inkoop - Kosten'!F8 -> 258369147x
A4: 1 | B4: 1600 | D4: =+D3 -> 2014-12-10 | E4: =+'Inkoop - Kosten'!J8 -> 6010 | F4: =+'Inkoop - Kosten'!I8 -> 200 | I4: 1 | J4: =+J3 -> 15005 | K4: leverancier b.v. | L4: 2 | M4: 258369147x
A5: 1 | B5: 1600 | D5: =+D4 -> 2014-12-10 | E5: =+'Inkoop - Kosten'!$J$3 -> 1911 | F5: =+'Inkoop - Kosten'!H8 -> 27 | I5: 1 | J5: 15005 | K5: leverancier b.v. | L5: 2 | M5: 258369147x
A6: 2 | B6: 1600 | D6: =+'Inkoop - Kosten'!D9 -> 2014-12-13 | E6: =+$B$3 -> 1600 | G6: =+'Inkoop - Kosten'!G9 -> 200 | I6: =+I3+1 -> 2 | J6: 15004 | K6: =+'Inkoop - Kosten'!E9 -> de boer | L6: 3 | M6: =+'Inkoop - Kosten'!F9 -> 20130056x
A7: 2 | B7: 1600 | D7: =+D6 -> 2014-12-13 | E7: =+'Inkoop - Kosten'!J9 -> 4998 | F7: =+'Inkoop - Kosten'!I9 -> 175 | I7: =+I6 -> 2 | J7: 15004 | K7: de boer | L7: 3 | M7: 20130056x
A8: 2 | B8: 1600 | D8: =+D7 -> 2014-12-13 | E8: =+'Inkoop - Kosten'!$J$3 -> 1911 | F8: =+'Inkoop - Kosten'!H9 -> 25 | I8: 2 | J8: 15004 | K8: de boer | L8: 3 | M8: 20130056x
A9: 2 | B9: 1600 | D9: =+'Inkoop - Kosten'!D10 -> 2014-12-12 | E9: =+$B$3 -> 1600 | G9: =+'Inkoop - Kosten'!G10 -> 1254 | I9: =+I6+1 -> 3 | J9: 15003 | K9: =+'Inkoop - Kosten'!E12 -> 0 | L9: 4 | M9: K14857
A10: 2 | B10: 1600 | D10: =+'Inkoop - Kosten'!D10 -> 2014-12-12 | E10: =+'Inkoop - Kosten'!J9 -> 4998 | F10: =+'Inkoop - Kosten'!I10 -> 912 | I10: =+I9 -> 3 | J10: =+J9 -> 15003 | K10: =+K9 -> 0 | L10: =+L9 -> 4 | M10: =+M9 -> K14857
A11: 2 | B11: 1600 | D11: =+'Inkoop - Kosten'!D10 -> 2014-12-12 | E11: =+'Inkoop - Kosten'!$J$3 -> 1911 | F11: =+'Inkoop - Kosten'!H10 -> 342 | I11: 3 | J11: 15003 | K11: 0 | L11: 4 | M11: K14857

Sheet Adm.knt.
A1: Admininistratiekantoor informatie
A3: Naam: | B3: AkS Administraties
A4: Contactpersoon: | B4: R. Stelma
A5: Adres: | B5: Gersthullen 85
A6: Postcode: | B6: 9403 WK
A7: Woonplaats: | B7: Assen
A8: Telefoon: | B8: 06-37025889
A9: E-mail: | B9: stelma@home.nl
A10: Website: | B10: www.admiservice.nl

Sheet draaitaabel
A1: Boekinghouding
A4: Rijlabels | B4: Som van Bedrag incl. | C4: Som van excl | D4: Som van btw
A5: Bank | B5: 435.5 | C5: 371.13 | D5: 64.37
A6: administratiekosten | B6: 0.79 | C6: 0.79
A7: brandstof | B7: 294.64 | C7: 247.57 | D7: 47.07
A8: doorbelaste kosten | B8: 42.94 | C8: 39.22 | D8: 3.72
A9: parkeren | B9: 78.4 | C9: 65.88 | D9: 12.52
A10: verblijfkosten | B10: 18.73 | C10: 17.67 | D10: 1.06
A11: Kas | B11: 32.75 | C11: -92.81 | D11: 125.56
A12: doorbelaste kosten | B12: 13.8 | C12: 13.8
A13: parkeren | B13: 9 | C13: -116 | D13: 125
A14: verblijfkosten | B14: 9.95 | C14: 9.39 | D14: 0.56
A15: (leeg) | C15: 0
A16: (leeg) | C16: 0
A17: Eindtotaal | B17: 468.25 | C17: 278.32 | D17: 189.93

Sheet to do
A2: inkoop | B2: nummering
A3: verkoopfacturen | B3: kolommen h/g
A4: factuur | B4: kolom 6% toevoegen
A5: factuur | B5: automatisch nummering
A6: draaitabel | B6: automatisch herberekenen
A7: offerte | B7: automatisch offerte maken
A8: verkoopfacturen | B8: lijst langer maken
A9: verkoopfacturen | B9: klaar maken voor contante verkoop
A13: betaalde versie maken | B13: zonder adminservice.nl
A14: versienummer
